Cogmind - Beta 17 @@@ ROGUE MODE // 2026.07.10 @ 15:32:08 Player: rz Result: Destroyed by G-34 Mercenary with Small Laser Performance ------------- Evolutions (1) 500 Regions Visited (2) 400 Robots Destroyed (14) 70 Value Destroyed (408) 408 Prototype IDs (1) 20 Alien Tech Used (0) 0 Bonus (6700) 6700 TOTAL SCORE: 8098 Bonus ------- Prayed to X0-1V1 5000 Major X0-1V1 Interference 1700 Cogmind --------- Core Integrity 0/300 Matter 337/800 Energy 900/900 System Corruption 6% Temperature Cool (6) Movement Walking (120) Location -9/Materials Parts ------- > --- POWER (1) -------- (None) > --- PROPULSION (5) --- Aluminum Leg > --- UTILITY (2) ------ Small Storage Unit > --- WEAPON (1) ------- Flail > --- INVENTORY (8) ---- Ion Engine Light Ion Engine Light Ion Engine Shield Generator Mining Claw Mining Claw Peak State ------------ > --- POWER ------------ Ion Engine > --- PROPULSION ------- Aluminum Leg Aluminum Leg > --- UTILITY ---------- Small Storage Unit X0-1V1's Piety Tracker > --- WEAPON ----------- Mining Claw Mining Claw > --- INVENTORY -------- Ion Engine Wheel Mining Claw [Rating: 19] Favorites ----------- Power Ion Engine Engine Ion Engine Propulsion Aluminum Leg Treads Light Treads Leg Aluminum Leg Wheel Wheel Utility Small Storage Unit Device X0-1V1's Piety Tracker Storage Small Storage Unit Weapon Light Assault Rifle Ballistic Gun Light Assault Rifle Impact Weapon Flail Slashing Weapon Mining Claw Build | -11 -10 -9 ------- Run | Yrd Mat Mat Slots Evolved 2 | . . 2 Power . | . . . Propulsion 2 | . . 2 Utility . | . . . Weapon . | . . . Parts Attached 16 | 6 6 4 Power 1 | 1 . . Engine 1 | 1 . . Core . | . . . Reactor . | . . . Propulsion 8 | 2 2 4 Treads 3 | 2 . 1 Leg 4 | . 2 2 Wheel 1 | . . 1 Hover . | . . . Flight . | . . . Utility 3 | 1 2 . Device 2 | . 2 . Storage 1 | 1 . . Processor . | . . . Hackware . | . . . Protection . | . . . Artifact . | . . . Weapon 4 | 2 2 . Energy Gun . | . . . Energy Cannon . | . . . Ballistic Gun 2 | 2 . . Ballistic Cannon . | . . . Launcher . | . . . Special Weapon . | . . . Impact Weapon . | . . . Slashing Weapon 2 | . 2 . Piercing Weapon . | . . . Special Melee Weapon . | . . . Unidentified Prototypes 1 | . 1 . Corrupted Parts 1 | . . 1 System Corruption 6 | . . 6 Parts Lost 9 | . 2 7 Power 1 | . . 1 Propulsion 7 | . 2 5 Utility 1 | . . 1 Weapon . | . . . Highest Loss Streak 5 | . 2 5 To Critical Strikes . | . . . Average Backups 4 | . 4 6 Power 1 | . 1 3 Propulsion 1 | . 1 . Utility . | . . . Weapon 1 | . 1 2 Tool/Special . | . . . Unused Backups 5 | . . 5 Power 3 | . . 3 Propulsion . | . . . Utility 1 | . . 1 Weapon 1 | . . 1 Tool/Special . | . . . Average Slot Usage (%) 80 | . 84 49 Engine 12 | . 14 5 Treads 11 | . 13 1 Leg 14 | . 14 14 Device 2 | . 1 4 Storage 13 | . 14 11 Ballistic Gun 15 | . 17 . Slashing Weapon 8 | . 8 5 Peak Build Rating 19 | 6 19 18 Average Rating 7 | 4 7 8 On Entrance 8 | . 6 18 Avg Prop Armor Cover (%) 20 | . . 20 Naked Turns . | . . . Heaviest Build 15 | 13 15 13 Greatest Support 40 | 40 40 20 Greatest Overweight (x) 2 | . 1 2 Average Overweight (x) . | . . . Largest Inventory Capacity 8 | 8 8 8 Average Capacity 7 | 6 8 8 Most Carried 7 | 1 6 7 Average Carried 4 | . 4 6 Final Capacity 8 | 8 8 8 Final Carried 6 | 1 6 6 Class Distribution -------------------- 100% | Mutant Dominant Class ---------------- Mutant | -10/Materials Mutant | -9/Materials Resources | -11 -10 -9 ----------- Run | Yrd Mat Mat Matter Collected 610 | 193 354 63 Remotely . | . . . Salvage Created 491 | . 354 137 Parts 30 | . 25 5 Haulers Intercepted 1 | . 1 . Recyclers Shooed 1 | . 1 . Parts Field Recycled . | . . . Retrieved Matter . | . . . Parts Self-Destructed . | . . . Prevented . | . . . Parts Restored . | . . . Kills | -11 -10 -9 ------- Run | Yrd Mat Mat Combat Hostiles Destroyed 11 | . 7 4 Melee 3 | . 2 1 Guns 5 | . 5 . AOE 1 | . . 1 Classes Destroyed 5 | . 4 1 Hauler 1 | . 1 . Operator 2 | . 1 1 Swarmer 2 | . 1 1 Grunt 7 | . 6 1 Sentry 2 | . . 2 Best Kill Streak 4 | . 1 4 Combat Bots Only 4 | . 1 4 Max Kills in Single Turn 1 | . 1 1 Gunslinging . | . . . Exploded 1 | . . 1 Melee 1 | . 1 1 Uniques/NPCs Destroyed . | . . . Combat | -11 -10 -9 -------- Run | Yrd Mat Mat Hostile Shots Fired 170 | . 65 105 Missed 36 | . 14 22 Hits 134 | . 51 83 Projectile 134 | . 51 83 Critical Strikes 3 | . 1 2 Damage Taken 1495 | . 640 855 Core 474 | . 174 300 Absorbed by Shields . | . . . Ignored by Resistances 71 | . . 71 Core Remaining (%) 82 | 100 65 . Volleys Fired 42 | . 42 . Largest 2 | . 2 . Hottest 40 | . 40 . Shots Fired 84 | . 84 . Gun 84 | . 84 . Cannon . | . . . Launcher . | . . . Special . | . . . Kinetic 84 | . 84 . Thermal . | . . . Explosive . | . . . Electromagnetic . | . . . Robot Hit Streak 9 | . 9 . Robot Miss Streak 3 | . 3 . Penetration Max . | . . . Secondary Targets . | . . . Shots Hit Robots 70 | . 61 9 Core Hits 20 | . 18 2 Critical Kills . | . . . Critical Parts Destroyed 1 | . . 1 Critical Strikes 1 | . . 1 Smash 1 | . . 1 Melee Attacks 24 | . 7 17 Impact 15 | . . 15 Slashing 9 | . 7 2 Piercing . | . . . Sneak Attacks 4 | . 3 1 Combat Hostiles . | . . . Follow-up Attacks . | . . . Damage Inflicted 1058 | . 757 301 Guns 561 | . 561 . Cannons . | . . . Explosions . | . . . Melee 497 | . 196 301 Ramming . | . . . Kinetic 561 | . 561 . Thermal . | . . . Explosive . | . . . Electromagnetic . | . . . Impact 211 | . . 211 Slashing 286 | . 196 90 Piercing . | . . . Highest Corruption 6 | . . 6 Average Corruption 6 | . . 6 Corruption Purged . | . . . Corruption Blocked . | . . . Overload Shots . | . . . Overflow Damage 46 | . . 46 Projectiles . | . . . Explosions . | . . . Melee 46 | . . 46 Knockbacks . | . . . Impact . | . . . Kinetic . | . . . Secondary . | . . . Self-Inflicted Damage . | . . . Shots . | . . . Rammed . | . . . Targets Rammed . | . . . Kicked . | . . . Crushed . | . . . Highest Temperature 281 | . 25 281 Average Temperature 42 | . 9 97 Received Heat Transfer 630 | . 348 282 Siege Activations . | . . . Martial Activations . | . . . Shielding Activations . | . . . Robots Disrupted . | . . . Combat Hostiles . | . . . Robots Corrupted 2 | . . 2 Combat Hostiles 2 | . . 2 Parts Fried 2 | . . 2 Impact Corruptions 2 | . . 2 Robots Melted . | . . . Combat Hostiles . | . . . Parts Melted . | . . . Heat Transferred . | . . . Parts Sabotaged . | . . . Parts Stolen . | . . . Parts Stripped . | . . . Power Chain Reactions . | . . . Alert | -11 -10 -9 ------- Run | Yrd Mat Mat Maximum Alert Level . | . . . Low Security (%) 100 | 100 100 100 Level 1 . | . . . Level 2 . | . . . Level 3 . | . . . Level 4 . | . . . Level 5 . | . . . High Security . | . . . Max Security . | . . . Peak Influence 197 | . 55 197 Initial . | . . . Average 28 | . 14 143 Influence Increases 534 | . 227 307 Destroy 0b10 Robot/C 220 | . 140 80 Destroy 0b10 Robot/NC 15 | . 10 5 Destroy Leader 62 | . 32 30 Lose Combat Pursuer 45 | . 45 . Miscellaneous 192 | . . 192 Influence Decreases 357 | . 227 130 Time Decay 277 | . 217 60 Lost Part 80 | . 10 70 Squads Dispatched 3 | . 1 2 Investigation . | . . . Extermination . | . . . Reinforcement 3 | . 1 2 Assault . | . . . Garrison . | . . . Intercept . | . . . Searches Triggered . | . . . Construction Impeded . | . . . Haulers Reinforced . | . . . Active Scanning Responses . | . . . Cargo Convoy Interrupts . | . . . Stealth | -11 -10 -9 --------- Run | Yrd Mat Mat Distress Signals 1 | . . 1 Communications Jammed . | . . . Distress Signals . | . . . Times Spotted 36 | . 23 13 Peak Tracking Total 8 | . 5 8 Tactical Retreats 2 | . 2 . Traps | -11 -10 -9 ------- Run | Yrd Mat Mat Traps Triggered 5 | . 5 . Indirectly . | . . . Trap Hack Attempts . | . . . Triggered . | . . . Disarmed . | . . . Reprogrammed . | . . . Reused . | . . . Traps Extracted . | . . . Installed . | . . . Triggered . | . . . Machines | -11 -10 -9 ---------- Run | Yrd Mat Mat Machines Disabled . | . . . Max in Single Turn . | . . . Machines Repaired . | . . . Machines Dismantled . | . . . Machines Sabotaged . | . . . Overloaded Fab Kills . | . . . Hacking | -11 -10 -9 --------- Run | Yrd Mat Mat Machines Accessed 2 | . 2 . Terminals . | . . . Fabricators . | . . . Repair Stations . | . . . Recycling Units 2 | . 2 . Scanalyzers . | . . . Garrison Access . | . . . Total Hacks 4 | . 4 . Successful 1 | . 1 . Failed 3 | . 3 . Catastrophic 3 | . 3 . Database Lockouts . | . . . Manual 1 | . 1 . Terminals . | . . . Fabricators . | . . . Repair Stations . | . . . Recycling Units 4 | . 4 . Scanalyzers . | . . . Garrison Access . | . . . Terminal Hacks . | . . . Fabricator Hacks . | . . . Repair Station Hacks . | . . . Recycling Unit Hacks 1 | . 1 . Retrieve Components 1 | . 1 . Scanalyzer . | . . . Garrison Access Hacks . | . . . Unauthorized Hacks . | . . . Terminals . | . . . Fabricators . | . . . Repair Stations . | . . . Recycling Units . | . . . Scanalyzers . | . . . Garrison Access . | . . . Data Cores Recovered . | . . . Used . | . . . Hacking Detections 2 | . 2 . Full Trace Events 2 | . 2 . Feedback Events . | . . . Feedback Blocked . | . . . Robot Schematics Acquired . | . . . Robots Built . | . . . Authchips . | . . . Time . | . . . Total Robot Build Rating . | . . . Part Schematics Acquired . | . . . Parts Built . | . . . Authchips . | . . . Time . | . . . Total Part Build Rating . | . . . Part Studies Acquired . | . . . Parts Repaired . | . . . Time . | . . . Parts Recycled . | . . . Recycled Matter . | . . . Retrieved Matter . | . . . Retrieved Components 1 | . 1 . Parts Scanalyzed . | . . . Part Schematics Acquired . | . . . Parts Damaged . | . . . Bothacking | -11 -10 -9 ------------ Run | Yrd Mat Mat Used RIF Installer . | . . . Robots Hacked . | . . . Non-combat . | . . . Combat . | . . . Robot Hacks Applied . | . . . Relay Couplers Released . | . . . Fabnet Peak Effective % . | . . . Robots Rewired . | . . . Allies Hacked . | . . . Hacks Repelled . | . . . Allies | -11 -10 -9 -------- Run | Yrd Mat Mat Total Allies . | . . . Largest Group . | . . . Highest-Rated Group . | . . . Highest-Rated Ally . | . . . Total Orders . | . . . Ally Attacks . | . . . Total Damage . | . . . Kills . | . . . Allies Corrupted . | . . . Allies Melted . | . . . X0-1V1 Amusement Gains 13 | . 3 10 Good Acts 10 | . 4 6 Bad Acts 12 | . 4 8 Intel | -11 -10 -9 ------- Run | Yrd Mat Mat Active Infowar (turns) . | . . . Robot Analysis Total . | . . . Derelict Logs Recovered . | . . . Drone Launches . | . . . Drone Recoveries . | . . . Exploration | -11 -10 -9 ------------- Run | Yrd Mat Mat Turns Passed 1032 | 72 840 120 Spaces Moved 571 | 41 474 56 Core 10 | 2 . 8 Treads 223 | 39 180 4 Legs 328 | . 294 34 Wheels 10 | . . 10 Hover . | . . . Flight . | . . . Fastest Speed 50 | 50 120 80 Average Speed 135 | 154 135 120 Slowest Speed 190 | 160 190 160 Overloaded Moves . | . . . Propulsion Burnouts . | . . . Robots Hopped . | . . . Potential Cave-ins . | . . . Cave-ins Triggered . | . . . Exploration Rate (%) 25 | 3 59 15 Regions Visited 2 Branch Regions . Pre-discovered Areas . | . . . Known Exits Taken . | . . . Unknown Exits Taken 2 | 1 1 . Scrap Searched . | . . . Spaces Dug . | . . . Terrain Destroyed . | . . . Melee . | . . . Projectile . | . . . AOE . | . . . Terrain Rammed . | . . . Walls Destroyed . | . . . Machines Disabled . | . . . Actions | -11 -10 -9 --------- Run | Yrd Mat Mat Total 705 | 47 578 80 Wait 34 | . 33 1 Move 569 | 40 473 56 Hop . | . . . Pick Up 11 | 1 9 1 Fast Attach 19 | 6 9 4 Attach 6 | . 5 1 Detach . | . . . Swap . | . . . Drop . | . . . Fire 42 | . 42 . Melee 24 | . 7 17 Ram . | . . . Kick . | . . . Crush . | . . . Escape Stasis . | . . . Rewire . | . . . Trap . | . . . Miscellaneous . | . . . Route ------- -11/Scrapyard -10/Materials (discovered 3 exits: [*Mat x2] / [*Sub]) -9/Materials (discovered 1 exit: Sto) History --------- Turn | Location | Event 10 | -11/Scrapyard | Discovered new exit (range 15) 73 | -11/Scrapyard | Entered Materials 302 | -10/Materials | Build established: Mutant 484 | -10/Materials | Core integrity fell below 50% 515 | -10/Materials | Discovered new exit (range 16) 569 | -10/Materials | Discovered new exit (range 16) 745 | -10/Materials | Discovered new exit (range 5) 756 | -10/Materials | Prayed at D.C.S.S. Altar Unit 872 | -10/Materials | TH resistance permanently improved by X0-1V1 (+10%; -100 max core) 894 | -10/Materials | X0-1V1 announced a LAN party 896 | -10/Materials | X0-1V1 activates XOMVISION 909 | -10/Materials | Core integrity restored by X0-1V1 (+22) 911 | -10/Materials | X0-1V1 mutated your Weapon slot to Propulsion slot 913 | -10/Materials | Entered another Materials area 913 | -9/Materials | Evolved 2 slots: Propulsion x2 923 | -9/Materials | Identified exit to Storage 923 | -9/Materials | X0-1V1 revealed exit location to -9/Storage 927 | -9/Materials | X0-1V1 added 0b10 threat records associated with you (considerable) 932 | -9/Materials | X0-1V1 released a cloud of subatomizers 941 | -9/Materials | X0-1V1 sent you into danger 980 | -9/Materials | Core integrity fell below 50% 1005 | -9/Materials | Lost 5 parts (1p3n1u) 1008 | -9/Materials | Core integrity fell below 20% 1033 | -9/Materials | Destroyed by G-34 Mercenary with Small Laser Last Messages --------------- 01018_ K-01 Serf collects debris. 01019_ U-05 Engineer lays Concrete. 01020_ K-01 Serf collects debris. 01020_ U-05 Engineer lays Concrete. 01021_ U-05 Engineer builds a Wall. 01023_ U-05 Engineer lays Concrete. 01023_ K-01 Serf collects debris. 01024_ Aluminum Leg destroyed. 01024_ U-05 Engineer lays Concrete. 01024_ K-01 Serf collects debris. 01025_ U-05 Engineer lays Concrete. 01026_ U-05 Engineer builds a Wall. 01026_ K-01 Serf collects debris. 01026_ U-05 Engineer lays Concrete. 01030_ G-34 Mercenary destroyed. 01030_ U-05 Engineer lays Concrete. 01030_ K-01 Serf collects debris. 01031_ U-05 Engineer lays Concrete. 01033_ K-01 Serf collects debris. 01033_ X0-1V1 howls with laughter! Map ----- +----------------------------------------------------+ | ?????????????????????????????????????????????????? | | ?????????????????????????????????????????????????? | | ?????????????????????? ????????????????????????? | | ?????????????????????? ????????????????????????? | | ?????????????????????+ ????????????????????????? | | ?????????????????????# #???#???????????????????? | | ?????????????????????# #?? #???????????????????? | | ?????????????????????# ### #???? ??????????????? | | ?????????????????????# ####/##?????????????? | | ?????????????????????# ??????????????? | | ?????????????????????# ????????????????? | | ?????????????????????# ?????????????????? | | ?????????????????????# ??????????????????? | | ?????????????????????# ????????????????????? | | ?????????????????????# ?????????????????????? | | ?????????????????????# ??????????????????????? | | ?????????????????????# #???????????????????????? | | ?????????????????????# ##########??????????????? | | ?????????????????????#a ## #??????????????? | | ?????????????????????# ## #???????????????? | | ????????????????????## ## ]]#???????????????? | | ??????????#######+### # ]]#???????????????? | | ????????? #! #???????????????? | | ????????? u kuu% #????? ?????????? | | ????????? g# #???? "?????????? | | ????????##+########## k@# u % #??? #?????????? | | ????????????????????## [ ### ##+### ###???????? | | ?????????????????????# %##"T"# ???????? | | ?????????????????????# ???????? | | ?????????????????????# a ??????? | | ?????????????????????# ????????? | | ?????????????????????# % k ????????? | | ?????????????????????# t""" """ ??" ???????? | | ?????????????????????# """ """ ???????????? | | ?????????????????????/a "" """ k???????????? | | ?????????????????????# g g ????????? | | ?????????????????????# r w ??????? | | ?????????????????????# ############ ??????? | | ?????????????????????# #????????????? ???????? | | ?????????????????????# #??????????????? ???????? | | ?????????????????????# #???????????????????????? | | ???????? ??????????# +???????????????????????? | | ???????? #?????????# #???????????????????????? | | ???????? #?????????# #???????????????????????? | | ???????? T?????????# #???????????????????????? | | ???????? #??##?????# #???????????????????????? | | ???????? ### ??????# #???????????????????????? | | ???????? ??????? ????????????????????????? | | ???????# ???????? ????????????????????????? | | ???????# ?????????? ????????????????????????? | +----------------------------------------------------+ Best States ------------- Heat Dissipation 28 Energy Generation 10 Energy Capacity 1050 Matter Stores 337 Matter Capacity 800 Sight Range 16 Terrain Scan Density 10 Resistance: TH 10 Evasion (%) 55 Recoil Reduction 2 Item Schematics ----------------- None Robot Schematics ------------------ None Fabricated ------------ Nothing Repaired ---------- Nothing Studied --------- None Alien Tech Used ----------------- None Achievements -------------- None Challenges ------------ None Game ------ Seed PhysicsBlinkNetwork Manual? 0 Play Time 00:12:19 Cumulative 75.4 hours Start 2026.07.10 @ 15:21:42 End 2026.07.10 @ 15:32:08 Sessions 1 Manual Loads 0 Difficulty Rogue Special Mode None Game No. 90 Rogue 36 Adventurer 54 Explorer 0 Win Type - Total 1 Types 1/0/0/0/0/0/0/0/0/0 Lore% 33 Gallery% 42 Achievement% 40 Wizard Run 0 Options --------- Layout 1 ASCII 0 Keyboard 0 Movement Mouse Keybinds 1 Fullscreen 1 Font 32/Tamsyn Map View 50x35 Zoom Use 0% Tactical HUD 1 Map Filters NONE Filters NONE Steam 1 RUN: c3213640-46bd-4182-a397-37383f185ea2